fUST/lending_fUST_20250610
["ID","MTS","AMOUNT","RATE_DAILY","PERIOD"]
[365175246,1749514234097,-430.0,0.00021363,4]
[365175247,1749514234106,-430.0,0.00021363,4]
[365175248,1749514234116,-460.0,0.00021363,4]
[365175249,1749514234127,-460.0,0.00021363,4]
[365175250,1749514234138,-430.0,0.00021363,4]
[365175251,1749514234147,-430.0,0.00021363,4]
[365175252,1749514234158,-305.82201057,0.00021363,4]
[365175253,1749514234168,-430.0,0.00021363,4]
[365175254,1749514234178,-460.0,0.00021363,4]
[365175255,1749514234188,-460.0,0.00021363,4]
[365175256,1749514234198,-430.0,0.00021363,4]
[365175257,1749514234208,-420.0,0.00021363,4]
[365175258,1749514234218,-460.0,0.00021363,4]
[365175259,1749514234228,-460.0,0.00021363,4]
[365175260,1749514234238,-460.0,0.00021363,4]
[365175261,1749514234248,-430.0,0.00021363,4]
[365175262,1749514234258,-500.0,0.00021363,4]
[365175263,1749514234268,-500.0,0.00021363,4]
[365175264,1749514234278,-189.63842136,0.00021363,4]
[365175265,1749514234288,-420.0,0.00021363,4]
[365175266,1749514234298,-173.16803214,0.00021363,4]
[365175267,1749514234308,-430.0,0.00021363,4]
[365175268,1749514234318,-430.0,0.00021363,4]
[365175269,1749514234328,-460.0,0.00021363,4]
[365175270,1749514234338,-430.0,0.00021363,4]
[365175271,1749514234348,-430.0,0.00021363,4]
[365175272,1749514234361,-460.0,0.00021363,4]
[365175273,1749514234372,-440.0,0.00021363,4]
[365175274,1749514234383,-440.0,0.00021363,4]
[365175275,1749514234392,-460.0,0.00021363,4]
[365175276,1749514234402,-460.0,0.00021363,4]
[365175277,1749514234412,-460.0,0.00021363,4]
[365175278,1749514234422,-460.0,0.00021363,4]
[365175279,1749514234431,-460.0,0.00021363,4]
[365175280,1749514234442,-460.0,0.00021363,4]
[365175281,1749514234452,-460.0,0.00021363,4]
[365175282,1749514234461,-305.23334353,0.00021363,4]
[365175283,1749514234471,-460.0,0.00021363,4]
[365175284,1749514234481,-460.0,0.00021363,4]
[365175285,1749514234492,-460.0,0.00021363,4]
[365175286,1749514234503,-460.0,0.00021363,4]
[365175287,1749514234513,-276.97095258,0.00021363,4]
[365175288,1749514234523,-460.0,0.00021363,4]
[365175289,1749514234535,-460.0,0.00021363,4]
[365175290,1749514234545,-460.0,0.00021363,4]
[365175291,1749514234555,-430.0,0.00021363,4]
[365175292,1749514234565,-432.37978503,0.00021363,4]
[365175293,1749514234575,-430.0,0.00021363,4]
[365175294,1749514234585,-460.0,0.00021363,4]
[365175295,1749514234595,-176.4870708,0.00021363,4]
[365175296,1749514234604,-460.0,0.00021363,4]
[365175297,1749514234615,-460.0,0.00021363,4]
[365175298,1749514234625,-460.0,0.00021363,4]
[365175299,1749514234636,-430.0,0.00021363,4]
[365175300,1749514234645,-460.0,0.00021363,4]
[365175301,1749514234655,-430.0,0.00021363,4]
[365175302,1749514234664,-460.0,0.00021363,4]
[365175303,1749514234674,-825.53,0.00021363,4]
[365175304,1749514234683,-527.74761476,0.00021363,4]
[365175305,1749514234693,-460.0,0.00021363,4]
[365175306,1749514234702,-2884.64,0.00021363,4]
[365175307,1749514234712,-420.0,0.00021363,4]
[365175308,1749514234722,-460.0,0.00021363,4]
[365175309,1749514234731,-460.0,0.00021363,4]
[365175310,1749514234741,-360.0,0.00021363,4]
[365175311,1749514234751,-460.0,0.00021363,4]
[365175312,1749514234761,-460.0,0.00021363,4]
[365175313,1749514234770,-460.0,0.00021363,2]
[365175314,1749514234780,-795.04,0.00021363,4]
[365175315,1749514234789,-460.0,0.00021363,4]
[365175316,1749514234799,-732.49,0.00021363,4]
[365175317,1749514234808,-460.0,0.00021363,4]
[365175318,1749514234818,-430.0,0.00021363,4]
[365175319,1749514234827,-287.30133394,0.00021363,4]
[365175320,1749514234836,-430.0,0.00021363,4]
[365175321,1749514234847,-460.0,0.00021363,4]
[365175322,1749514234856,-460.0,0.00021363,4]
[365175323,1749514234866,-514.80120249,0.00021363,4]
[365175324,1749514234875,-370.0,0.00021363,4]
[365175325,1749514234886,-460.0,0.00021363,4]
[365175326,1749514234896,-1064.67,0.00021363,4]
[365175327,1749514234906,-460.0,0.00021363,4]
[365175328,1749514234916,-460.0,0.00021363,4]
[365175329,1749514234926,-460.0,0.00021363,4]
[365175330,1749514234936,-745.9,0.00021363,4]
[365175331,1749514234946,-460.0,0.00021363,4]
[365175332,1749514234955,-460.0,0.00021363,4]
[365175333,1749514234965,-725.5,0.00021363,4]
[365175334,1749514234975,-420.0,0.00021363,4]
[365175335,1749514234985,-839.2,0.00021363,4]
[365175336,1749514234995,-460.0,0.00021363,4]
[365175337,1749514235004,-184.32,0.00021363,2]
[365175338,1749514235014,-460.0,0.00021364,4]
[365175339,1749514235024,-460.0,0.00021364,4]
[365175340,1749514235033,-460.0,0.00021364,4]
[365175341,1749514235043,-432.13090303,0.00021364,4]
[365175342,1749514235053,-440.0,0.00021364,4]
[365175343,1749514235062,-440.0,0.00021364,4]
[365175344,1749514235073,-460.0,0.00021364,4]
[365175345,1749514235086,-593.15064607,0.00021364,4]
[365175346,1749514235096,-430.01611677,0.00021364,4]
[365175347,1749514235105,-420.0,0.00021364,4]
[365175348,1749514235115,-430.0,0.00021364,4]
[365175349,1749514235126,-430.0,0.00021364,4]
[365175350,1749514235137,-420.0,0.00021364,4]
[365175351,1749514235148,-386.71481156,0.00021364,4]
[365175352,1749514235159,-504.94440166,0.00021365,4]
[365175353,1749514235169,-460.0,0.00021365,4]
[365175354,1749514235179,-420.0,0.00021365,4]
[365175355,1749514235189,-430.0,0.00021365,4]
[365175356,1749514235199,-430.0,0.00021365,4]
[365175357,1749514235209,-430.0,0.00021365,4]
[365175358,1749514235218,-430.0,0.00021365,4]
[365175359,1749514235228,-460.0,0.00021365,4]
[365175360,1749514235238,-430.0,0.00021365,4]
[365175361,1749514235248,-430.0,0.00021365,4]
[365175362,1749514235259,-430.0,0.00021365,4]
[365175363,1749514235269,-155.0,0.00021365,2]
[365175364,1749514235404,-460.0,0.00021365,4]
[365175365,1749514235415,-430.0,0.00021365,4]
[365175366,1749514235427,-460.0,0.00021365,4]
[365175367,1749514235437,-450.0,0.00021365,4]
[365175368,1749514235447,-430.0,0.00021365,4]
[365175369,1749514235457,-201.30607031,0.00021365,4]
[365175370,1749514235466,-460.0,0.00021365,4]
[365175371,1749514235476,-157.023591,0.00021366,2]
[365175372,1749514235486,-151.0,0.00021366,2]
[365175373,1749514235495,-151.0,0.00021366,2]
[365175374,1749514235505,-151.0,0.00021366,2]
[365175375,1749514235515,-151.0,0.00021367,2]
[365175376,1749514235525,-151.0,0.00021367,2]
[365175377,1749514235535,-500.0,0.00021373,2]
[365175378,1749514235545,-615.67473108,0.00021373,2]
[365175379,1749514235555,-628.87481225,0.00021373,2]
[365175380,1749514235565,-500.0,0.00021373,2]
[365175381,1749514235574,-500.0,0.00021373,2]
[365175382,1749514235582,-500.0,0.00021373,2]
[365175383,1749514235592,-500.0,0.00021373,2]
[365175384,1749514235602,-265.26159556,0.00021373,2]
[365175385,1749514235611,-500.0,0.00021373,2]
[365175386,1749514235622,-500.0,0.00021373,2]
[365175387,1749514235631,-500.0,0.00021393,4]
[365175388,1749514235642,-500.0,0.0002142,4]
[365175389,1749514235651,-500.0,0.00021448,4]
[365175390,1749514235661,-1376.09,0.00021448,2]
[365175391,1749514235671,-500.0,0.00021475,4]
[365175392,1749514235681,-500.0,0.00021503,4]
[365175393,1749514235691,-500.0,0.0002153,4]
[365175394,1749514235701,-1239.56190098,0.00021537,2]
[365175395,1749514235710,-500.0,0.00021557,4]
[365175396,1749514235720,-401.19998337,0.00021585,4]
[365175397,1749514235729,-5000.0,0.00021626,2]
[365175398,1749514235739,-1176.74,0.00021627,3]
[365175399,1749514235749,-588.37,0.00021627,3]
[365175400,1749514235759,-294.18,0.00021627,3]
[365175401,1749514235769,-882.59,0.00021627,3]
[365175402,1749514235779,-493.64179872,0.00021636,2]
[365175403,1749514235790,-500.0,0.00021636,2]
[365175404,1749514235801,-500.0,0.00021636,2]
[365175405,1749514235812,-500.0,0.00021636,2]
[365175406,1749514235822,-500.0,0.00021636,2]
[365175407,1749514235832,-500.0,0.00021636,2]
[365175408,1749514235841,-500.0,0.00021636,2]
[365175409,1749514235849,-500.0,0.00021636,2]
[365175410,1749514235857,-294.22296063,0.00021636,2]
[365175411,1749514235866,-500.0,0.00021636,2]
[365175412,1749514235874,-460.0,0.00021637,4]
[365175413,1749514235883,-410.0,0.00021637,4]
[365175414,1749514235893,-410.0,0.00021637,4]
[365175415,1749514235901,-330.0,0.00021637,4]
[365175416,1749514235909,-460.0,0.00021637,4]
[365175417,1749514235917,-423.54,0.00021637,4]
[365175418,1749514235924,-460.0,0.00021637,4]
[365175419,1749514235933,-204.94,0.00021637,4]
[365175420,1749514235942,-410.0,0.00021637,4]
[365175421,1749514235952,-410.0,0.00021637,4]
[365175422,1749514235961,-410.0,0.00021637,4]
[365175423,1749514235971,-410.0,0.00021637,4]
[365175424,1749514235981,-410.0,0.00021637,4]
[365175425,1749514235991,-262.7,0.00021637,4]
[365175426,1749514236001,-420.0,0.00021637,4]
[365175427,1749514236010,-460.0,0.00021637,4]
[365175428,1749514236019,-460.0,0.00021637,4]
[365175429,1749514236029,-460.0,0.00021637,4]
[365175430,1749514236039,-460.0,0.00021637,4]
[365175431,1749514236049,-460.0,0.00021637,4]
[365175432,1749514236058,-410.0,0.00021637,4]
[365175433,1749514236068,-460.0,0.00021637,4]
[365175434,1749514236079,-460.0,0.00021637,4]
[365175435,1749514236091,-410.0,0.00021637,4]
[365175436,1749514236101,-151.0,0.00021637,2]
[365175437,1749514236110,-151.0,0.00021637,2]
[365175438,1749514236120,-410.0,0.00021637,4]
[365175439,1749514236131,-410.0,0.00021637,4]
[365175440,1749514236141,-306.123583,0.00021637,4]
[365175441,1749514236150,-410.0,0.00021637,4]
[365175442,1749514236160,-460.0,0.00021637,4]
[365175443,1749514236170,-410.0,0.00021637,4]
[365175444,1749514236180,-410.0,0.00021637,4]
[365175445,1749514236189,-410.0,0.00021637,4]
[365175446,1749514236199,-500.0,0.00021637,2]
[365175447,1749514236209,-465.694822,0.00021637,2]
[365175448,1749514236219,-465.694822,0.00021637,2]
[365175449,1749514236228,-370.0,0.00021637,4]
[365175450,1749514236237,-460.0,0.00021637,4]
[365175451,1749514236246,-460.0,0.00021637,4]
[365175452,1749514236255,-958.858113,0.00021637,2]
[365175453,1749514236265,-958.858113,0.00021637,2]
[365175454,1749514236275,-460.0,0.00021637,4]
[365175455,1749514236285,-151.0,0.00021637,2]
[365175456,1749514236299,-460.0,0.00021637,4]
[365175457,1749514236310,-188.43,0.00021637,4]
[365175458,1749514236320,-460.0,0.00021637,4]
[365175459,1749514236331,-151.0,0.00021637,2]
[365175460,1749514236341,-460.0,0.00021637,4]
[365175461,1749514236350,-460.0,0.00021637,4]
[365175462,1749514236360,-460.0,0.00021637,4]
[365175463,1749514236370,-460.0,0.00021637,4]
[365175464,1749514236380,-460.0,0.00021637,4]
[365175465,1749514236390,-460.0,0.00021637,4]
[365175466,1749514236400,-151.0,0.00021637,2]
[365175467,1749514236410,-460.0,0.00021637,4]
[365175468,1749514236421,-215.33832303,0.00021637,4]
[365175469,1749514236431,-460.0,0.00021637,4]
[365175470,1749514236441,-460.0,0.00021637,4]
[365175471,1749514236451,-460.0,0.00021637,4]
[365175472,1749514236460,-460.0,0.00021637,4]
[365175473,1749514236470,-440.0,0.00021637,4]
[365175474,1749514236479,-460.0,0.00021637,4]
[365175475,1749514236489,-159.182202,0.00021637,2]
[365175476,1749514236499,-159.182202,0.00021637,2]
[365175477,1749514236509,-320.829958,0.00021637,2]
[365175478,1749514236518,-460.0,0.00021637,4]
[365175479,1749514236528,-320.829958,0.00021637,2]
[365175480,1749514236538,-460.0,0.00021637,4]
[365175481,1749514236548,-460.0,0.00021637,4]
[365175482,1749514236559,-160.0,0.00021637,2]
[365175483,1749514236569,-460.0,0.00021637,4]
[365175484,1749514236578,-460.0,0.00021637,4]
[365175485,1749514236588,-460.0,0.00021637,4]
[365175486,1749514236597,-460.0,0.00021637,4]
[365175487,1749514236607,-460.0,0.00021637,4]
[365175488,1749514236617,-460.0,0.00021637,4]
[365175489,1749514236626,-420.0,0.00021637,4]
[365175490,1749514236637,-460.0,0.00021637,4]
[365175491,1749514236647,-460.0,0.00021637,4]
[365175492,1749514236656,-460.0,0.00021637,4]
[365175493,1749514236666,-460.0,0.00021637,4]
[365175494,1749514236676,-460.0,0.00021637,4]
[365175495,1749514236686,-415.46472631,0.00021637,4]
[365175496,1749514236696,-151.0,0.00021637,2]
[365175497,1749514236706,-410.0,0.00021637,4]
[365175498,1749514236716,-460.0,0.00021637,4]
[365175499,1749514236725,-460.0,0.00021637,4]
[365175500,1749514236735,-151.0,0.00021637,2]
[365175501,1749514236745,-460.0,0.00021637,4]
[365175502,1749514236754,-825.53,0.00021637,4]
[365175503,1749514236763,-460.0,0.00021637,4]
[365175504,1749514236772,-2884.64,0.00021637,4]
[365175505,1749514236782,-460.0,0.00021637,4]
[365175506,1749514236791,-1115.71041,0.00021637,2]
[365175507,1749514236800,-420.0,0.00021637,4]
[365175508,1749514236809,-1115.71041,0.00021637,2]
[365175509,1749514236822,-460.0,0.00021637,4]
[365175510,1749514236831,-506.73359417,0.00021637,4]
[365175511,1749514236840,-460.0,0.00021637,2]
[365175512,1749514236849,-795.04,0.00021637,4]
[365175513,1749514236858,-460.0,0.00021637,4]
[365175514,1749514236867,-732.49,0.00021637,4]
[365175515,1749514236876,-460.0,0.00021637,4]
[365175516,1749514236886,-151.0,0.00021637,2]
[365175517,1749514236895,-173.414576,0.00021637,2]
[365175518,1749514236904,-460.0,0.00021637,4]
[365175519,1749514236913,-460.0,0.00021637,4]
[365175520,1749514236923,-460.0,0.00021637,4]
[365175521,1749514236932,-1064.67,0.00021637,4]
[365175522,1749514236941,-460.0,0.00021637,4]
[365175523,1749514236950,-460.0,0.00021637,4]
[365175524,1749514236959,-460.0,0.00021637,4]
[365175525,1749514236968,-745.9,0.00021637,4]
[365175526,1749514236977,-460.0,0.00021637,4]
[365175527,1749514236986,-460.0,0.00021637,4]
[365175528,1749514236995,-725.5,0.00021637,4]
[365175529,1749514237004,-839.2,0.00021637,4]
[365175530,1749514237013,-460.0,0.00021637,4]
[365175531,1749514237023,-267.43824,0.00021637,2]
[365175532,1749514237033,-460.0,0.00021638,4]
[365175533,1749514237043,-151.0,0.00021638,2]
[365175534,1749514237053,-151.0,0.00021638,2]
[365175535,1749514237063,-410.0,0.00021638,4]
[365175536,1749514237073,-151.0,0.00021638,2]
[365175537,1749514237086,-460.0,0.00021638,4]
[365175538,1749514237096,-151.0,0.00021638,2]
[365175539,1749514237105,-151.0,0.00021638,2]
[365175540,1749514237115,-151.0,0.00021638,2]
[365175541,1749514237126,-220.405185,0.00021638,2]
[365175542,1749514237137,-151.0,0.00021638,2]
[365175543,1749514237146,-220.405185,0.00021638,2]
[365175544,1749514237158,-151.0,0.00021638,2]
[365175545,1749514237169,-151.0,0.00021638,2]
[365175546,1749514237178,-151.0,0.00021638,2]
[365175547,1749514237188,-151.0,0.00021638,2]
[365175548,1749514237197,-151.0,0.00021638,2]
[365175549,1749514237207,-151.0,0.00021638,2]
[365175550,1749514237216,-1115.71041,0.00021638,2]
[365175551,1749514237226,-1115.71041,0.00021638,2]
[365175552,1749514237236,-151.0,0.00021639,2]
[365175553,1749514237245,-151.0,0.00021639,2]
[365175554,1749514237255,-460.0,0.00021639,4]
[365175555,1749514237265,-151.0,0.00021639,2]
[365175556,1749514237275,-151.0,0.00021639,2]
[365175557,1749514237284,-151.0,0.00021639,2]
[365175558,1749514237294,-420.0,0.00021639,4]
[365175559,1749514237305,-151.0,0.00021639,2]
[365175560,1749514237317,-400.0,0.00021639,4]
[365175561,1749514237327,-151.0,0.00021639,2]
[365175562,1749514237337,-152.292857,0.00021639,2]
[365175563,1749514237346,-151.0,0.00021639,2]
[365175564,1749514237356,-390.0,0.00021639,4]
[365175565,1749514237366,-400.0,0.00021639,4]
[365175566,1749514237376,-160.65106,0.00021639,2]
[365175567,1749514237387,-160.65106,0.00021639,2]
[365175568,1749514237396,-151.0,0.00021639,2]
[365175569,1749514237407,-151.0,0.00021639,2]
[365175570,1749514237416,-151.0,0.00021639,2]
[365175571,1749514237426,-465.694822,0.00021639,2]
[365175572,1749514237436,-465.694822,0.00021639,2]
[365175573,1749514237445,-958.858113,0.00021639,2]
[365175574,1749514237455,-958.858113,0.00021639,2]
[365175575,1749514237466,-151.0,0.00021639,2]
[365175576,1749514237475,-159.182202,0.00021639,2]
[365175577,1749514237485,-159.182202,0.00021639,2]
[365175578,1749514237495,-320.829958,0.00021639,2]
[365175579,1749514237505,-320.829958,0.00021639,2]
[365175580,1749514237515,-151.0,0.00021639,2]
[365175581,1749514237525,-151.0,0.00021639,2]
[365175582,1749514237535,-267.43824,0.00021639,2]
[365175583,1749514237544,-151.0,0.0002164,2]
[365175584,1749514237553,-157.515803,0.0002164,2]
[365175585,1749514237563,-500.0,0.00021641,2]
[365175586,1749514237572,-151.0,0.00021641,2]
[365175587,1749514237582,-151.0,0.00021641,2]
[365175588,1749514237591,-500.00905201,0.00021691,2]
[365175589,1749514237601,-500.0,0.00021691,2]
[365175590,1749514237610,-500.0,0.00021742,2]
[365175591,1749514237619,-518.43483232,0.00021778,2]
[365175592,1749514237629,-500.0,0.00021778,2]
[365175593,1749514237638,-151.0,0.0002178,2]
[365175594,1749514237648,-151.0,0.0002178,2]
[365175595,1749514237657,-151.0,0.0002178,2]
[365175596,1749514237666,-220.405185,0.0002178,2]
[365175597,1749514237675,-151.0,0.0002178,2]
[365175598,1749514237685,-220.405185,0.0002178,2]
[365175599,1749514237694,-151.0,0.0002178,2]
[365175600,1749514237703,-151.0,0.0002178,2]
[365175601,1749514237713,-151.0,0.0002178,2]
[365175602,1749514237722,-151.0,0.00021781,2]
[365175603,1749514237733,-151.0,0.00021781,2]
[365175604,1749514237743,-729.5686372,0.00021808,2]
[365175605,1749514237752,-151.0,0.00021812,2]
[365175606,1749514237762,-151.0,0.000219,2]
[365175607,1749514237771,-709.99682386,0.000219,6]
[365175608,1749514237781,-465.694822,0.00021901,2]
[365175609,1749514237790,-465.694822,0.00021901,2]
[365175610,1749514237800,-958.858113,0.00021901,2]
[365175611,1749514237810,-958.858113,0.00021901,2]
[365175612,1749514237820,-151.0,0.00021901,2]
[365175613,1749514237831,-159.182202,0.00021901,2]
[365175614,1749514237840,-159.182202,0.00021901,2]
[365175615,1749514237850,-320.829958,0.00021901,2]
[365175616,1749514237859,-320.829958,0.00021901,2]
[365175617,1749514237869,-151.0,0.00021901,2]
[365175618,1749514237969,-151.0,0.00021901,2]
[365175619,1749514237979,-267.43824,0.00021901,2]
[365175620,1749514237988,-151.0,0.00021904,2]
[365175622,1749514237998,-400.0,0.00021911,4]
[365175624,1749514238007,-370.70962939,0.00021911,4]
[365175625,1749514238017,-390.0,0.00021911,4]
[365175626,1749514238026,-460.0,0.00021911,4]
[365175627,1749514238036,-390.0,0.00021911,4]
[365175628,1749514238046,-420.40131777,0.00021911,4]
[365175629,1749514238056,-350.0,0.00021911,4]
[365175630,1749514238066,-390.0,0.00021911,4]
[365175631,1749514238077,-390.0,0.00021911,4]
[365175632,1749514238089,-390.0,0.00021911,4]
[365175633,1749514238099,-151.0,0.00021911,2]
[365175634,1749514238109,-151.0,0.00021911,2]
[365175635,1749514238119,-460.0,0.00021911,4]
[365175636,1749514238131,-460.0,0.00021911,4]
[365175637,1749514238140,-460.0,0.00021911,4]
[365175638,1749514238151,-460.0,0.00021911,4]
[365175639,1749514238161,-460.0,0.00021911,4]
[365175640,1749514238171,-572.7745404,0.00021911,4]
[365175641,1749514238180,-460.0,0.00021911,4]
[365175642,1749514238190,-151.0,0.00021911,2]
[365175643,1749514238200,-460.0,0.00021911,4]
[365175644,1749514238210,-460.0,0.00021911,4]
[365175645,1749514238220,-460.0,0.00021911,4]
[365175646,1749514238229,-400.0,0.00021911,4]
[365175647,1749514238239,-460.0,0.00021911,4]
[365175648,1749514238249,-151.0,0.00021911,2]
[365175649,1749514238259,-460.0,0.00021911,4]
[365175650,1749514238269,-460.0,0.00021911,4]
[365175651,1749514238279,-390.0,0.00021911,4]
[365175652,1749514238289,-460.0,0.00021911,4]
[365175653,1749514238298,-460.0,0.00021911,4]
[365175654,1749514238308,-460.0,0.00021911,4]
[365175655,1749514238318,-460.0,0.00021911,4]
[365175656,1749514238327,-460.0,0.00021911,4]
[365175657,1749514238337,-460.0,0.00021911,4]
[365175658,1749514238347,-460.0,0.00021911,4]
[365175659,1749514238358,-410.0,0.00021911,4]
[365175660,1749514238367,-460.0,0.00021911,4]
[365175661,1749514238377,-390.0,0.00021911,4]
[365175662,1749514238387,-460.0,0.00021911,4]
[365175663,1749514238396,-460.0,0.00021911,4]
[365175664,1749514238406,-390.0,0.00021911,4]
[365175665,1749514238416,-460.0,0.00021911,4]
[365175666,1749514238426,-460.0,0.00021911,4]
[365175667,1749514238435,-390.0,0.00021911,4]
[365175668,1749514238445,-390.0,0.00021911,4]
[365175669,1749514238454,-441.6063874,0.00021911,4]
[365175670,1749514238464,-460.0,0.00021911,4]
[365175671,1749514238474,-460.0,0.00021911,4]
[365175672,1749514238483,-825.53,0.00021911,4]
[365175674,1749514238492,-460.0,0.00021911,4]
[365175675,1749514238501,-2884.64,0.00021911,4]
[365175676,1749514238511,-460.0,0.00021911,4]
[365175677,1749514238520,-1115.71041,0.00021911,2]
[365175678,1749514238530,-1115.71041,0.00021911,2]
[365175679,1749514238540,-460.0,0.00021911,4]
[365175680,1749514238549,-460.0,0.00021911,2]
[365175681,1749514238559,-795.04,0.00021911,4]
[365175682,1749514238569,-321.67509405,0.00021911,4]
[365175683,1749514238579,-732.49,0.00021911,4]
[365175684,1749514238589,-460.0,0.00021911,4]
[365175685,1749514238599,-460.0,0.00021911,4]
[365175686,1749514238608,-460.0,0.00021911,4]
[365175687,1749514238618,-460.0,0.00021911,4]
[365175688,1749514238627,-1064.67,0.00021911,4]
[365175689,1749514238638,-370.0,0.00021911,4]
[365175690,1749514238648,-370.0,0.00021911,4]
[365175691,1749514238658,-460.0,0.00021911,4]
[365175692,1749514238667,-745.9,0.00021911,4]
[365175693,1749514238677,-460.0,0.00021911,4]
[365175694,1749514238687,-460.0,0.00021911,4]
[365175695,1749514238696,-725.5,0.00021911,4]
[365175696,1749514238706,-839.2,0.00021911,4]
[365175697,1749514238716,-460.0,0.00021911,4]
[365175698,1749514238726,-151.0,0.00021912,2]
[365175700,1749514238735,-151.0,0.00021912,2]
[365175701,1749514238745,-151.0,0.00021912,2]
[365175703,1749514238755,-151.0,0.00021912,2]
[365175705,1749514238764,-151.0,0.00021912,2]
[365175707,1749514238774,-160.65106,0.00021912,2]
[365175709,1749514238784,-160.65106,0.00021912,2]
[365175711,1749514238794,-151.0,0.00021912,2]
[365175713,1749514238804,-460.0,0.00021912,4]
[365175716,1749514238814,-151.0,0.00021912,2]
[365175717,1749514238835,-151.0,0.00021912,2]
[365175719,1749514238846,-217.11675586,0.00021912,4]
[365175721,1749514238856,-151.0,0.00021912,2]
[365175722,1749514238866,-151.0,0.00021912,2]
[365175723,1749514238877,-220.405185,0.00021912,2]
[365175724,1749514238888,-151.0,0.00021912,2]
[365175725,1749514238898,-220.405185,0.00021912,2]
[365175726,1749514238908,-151.0,0.00021912,2]
[365175727,1749514238918,-151.0,0.00021912,2]
[365175728,1749514238929,-151.0,0.00021912,2]
[365175729,1749514238939,-151.0,0.00021912,2]
[365175730,1749514238949,-465.694822,0.00021912,2]
[365175731,1749514238959,-465.694822,0.00021912,2]
[365175732,1749514238969,-958.858113,0.00021912,2]
[365175733,1749514238980,-958.858113,0.00021912,2]
[365175734,1749514238990,-151.0,0.00021912,2]
[365175735,1749514239001,-159.182202,0.00021912,2]
[365175736,1749514239010,-159.182202,0.00021912,2]
[365175737,1749514239020,-320.829958,0.00021912,2]
[365175738,1749514239030,-320.829958,0.00021912,2]
[365175739,1749514239039,-151.0,0.00021912,2]
[365175740,1749514239049,-151.0,0.00021912,2]
[365175741,1749514239059,-267.43824,0.00021912,2]
[365175742,1749514239069,-460.0,0.00021913,4]
[365175743,1749514239080,-186.08321839,0.00021918,2]
[365175744,1749514239093,-537.67415374,0.00021921,2]
[365175745,1749514239104,-1000.0,0.00021921,2]
[365175746,1749514239115,-151.0,0.00021921,7]
[365175747,1749514239127,-291.362018,0.00021921,7]
[365175748,1749514239140,-3430.90329957,0.00022,2]
[365175749,1749514239151,-151.0,0.00022,7]
[365175750,1749514239163,-151.0,0.00022,7]
[365175751,1749514239174,-1115.71041,0.00022,2]
[365175752,1749514239185,-1115.71041,0.00022,2]
[365175753,1749514239196,-159.0,0.00022,2]
[365175754,1749514239206,-709.99682384,0.00022003,6]
[365175755,1749514239216,-325.28035834,0.00022037,2]
[365175756,1749514239226,-500.0,0.00022037,2]
[365175757,1749514239236,-500.0,0.00022067,2]
[365175758,1749514239246,-500.0,0.00022067,2]
[365175759,1749514239255,-638.20879264,0.00022067,2]